[Event "18th Charleroi Open-C 2019"]
[Site "Charleroi"]
[Date "2019.08.01"]
[Round "7.1"]
[White "Van Hille, Clara"]
[Black "Pouliart, Sander"]
[Result "0-1"]
[ECO "B23"]
[WhiteElo "1391"]
[BlackElo "1375"]
[Annotator "NA"]
[PlyCount "38"]
[EventDate "2019.07.22"]
[EventType "swiss"]
[EventCountry "BEL"]
[SourceTitle "playchess.com"]
[Source "ChessBase"]
[SourceQuality "1"]
[TimeControl "40/5400+30:1800+30"]

1. e4 {[%emt 0:00:00]} c5 {[%emt 0:00:05]} 2. Nc3 {[%emt 0:00:00]} Nc6 {[%emt 0:00:34]} 3. f4 {[%emt 0:00:28]} g6 {[%emt 0:00:36]} 4. Nf3 {[%emt 0:00:43]} Bg7 5. Bb5 {[%emt 0:06:21]} e6 {[%emt 0:01:47]} 6. Bxc6 {[%emt 0:01:15]} bxc6 {[%emt 0:00:28]} 7. d3 {[%emt 0:00:32]} Ne7 {[%emt 0:01:16]} 8. O-O {[%emt 0:01:40]} d5 {[%emt 0:01:47]} 9. Qe1 {[%emt 0:06:55]} Qb6 {[%emt 0:18:40]} 10. Kh1 {[%emt 0:05:02]} Ba6 {[%emt 0:03:27]} 11. Rb1 {[%emt 0:16:39]} c4 {[%emt 0:07:33]} 12. Be3 {[%emt 0:10:39]} d4 {[%emt 0:02:16]} 13. Bf2 {[%emt 0:00:41]} c5 {[%emt 0:04:30]} 14. Na4 {[%emt 0:01:58]} Qc6 {[%emt 0:02:39]} 15. b3 {[%emt 0:13:14]} cxd3 {[%emt 0:02:24]} 16. Rg1 {[%emt 0:00:41]} dxc2 {[%emt 0:00:58]} 17. Rc1 {[%emt 0:00:15]} Bd3 {[%emt 0:09:56]} 18. Nd2 {[%emt 0:00:52]} f5 {[%emt 0:13:17]} 19. e5 {[%emt 0:15:15]} Nd5 {[%emt 0:00:55]} 0-1

[Event "18th Charleroi Open-C 2019"]
[Site "Charleroi"]
[Date "2019.08.02"]
[Round "8.1"]
[White "Sofia, Tommaso"]
[Black "Van Hille, Clara"]
[Result "1-0"]
[ECO "D37"]
[WhiteElo "1580"]
[BlackElo "1391"]
[Annotator "NA"]
[PlyCount "41"]
[EventDate "2019.07.22"]
[EventType "swiss"]
[EventCountry "BEL"]
[SourceTitle "playchess.com"]
[Source "ChessBase"]
[SourceQuality "1"]
[TimeControl "40/5400+30:1800+30"]

1. d4 {[%emt 0:00:00]} d5 {[%emt 0:00:00]} 2. c4 {[%emt 0:00:00]} e6 {[%emt 0:00:00]} 3. Nc3 {[%emt 0:00:00]} Be7 {[%emt 0:00:00]} 4. Bf4 {[%emt 0:01:08]} Nf6 {[%emt 0:05:05]} 5. e3 {[%emt 0:01:11]} O-O {[%emt 0:02:26]} 6. Nf3 {[%emt 0:02:04]} b6 {[%emt 0:05:28]} 7. cxd5 {[%emt 0:03:20]} exd5 {[%emt 0:00:33]} 8. Bd3 {[%emt 0:02:43]} Be6 {[%emt 0:03:44]} 9. h3 {[%emt 0:09:13]} c5 {[%emt 0:03:45]} 10. dxc5 {[%emt 0:06:22]} bxc5 {[%emt 0:01:36]} 11. O-O {[%emt 0:05:23]} Nc6 {[%emt 0:05:35]} 12. Rc1 {[%emt 0:06:55]} Qa5 {[%emt 0:17:08]} 13. g4 {[%emt 0:09:58]} Rfd8 {[%emt 0:21:57]} 14. Ng5 {[%emt 0:05:33]} Rac8 {[%emt 0:17:23]} 15. Nxe6 {[%emt 0:04:08]} fxe6 {[%emt 0:00:13]} 16. g5 {[%emt 0:00:24]} Ne4 {[%emt 0:01:12]} 17. Qh5 {[%emt 0:01:12]} e5 {[%emt 0:08:01]} 18. Nxe4 {[%emt 0:00:49]} dxe4 {[%emt 0:01:30]} 19. Bc4+ {[%emt 0:00:25]} Kh8 {[%emt 0:00:28]} 20. g6 {[%emt 0:00:38]} h6 {[%emt 0:01:09]} 21. Bxh6 {[%emt 0:00:11]} 1-0